bitfinex/quotes_ETHUSD_20220308
["timestamp","ask_amount","ask_price","bid_price","bid_amount"]
[1646742558078,0.38277639,2580.7,2580.2,2.39600262]
[1646742558279,0.38277639,2580.6,2580.3,1.17733878]
[1646742558478,0.38277639,2580.5,2580.3,1.17733878]
[1646742558678,0.38277639,2580.4,2580.3,1.17733878]
[1646742558881,1.09154171,2580.9,2580.3,1.17733878]
[1646742559080,0.0268562,2580.6,2580.3,1.17733878]
[1646742559281,0.38277639,2580.5,2580.3,1.17733878]
[1646742559479,0.0268562,2580.6,2580.2,0.30480178]
[1646742559480,0.73562152,2580.6,2580.2,0.30480178]
[1646742559682,0.38277639,2580.5,2580.2,0.00480178]
[1646742559880,0.38277639,2580.5,2580.3,1.17831988]
[1646742560081,0.38277639,2580.5,2580.3,1.47831988]
[1646742560280,0.38277639,2580.5,2580.3,0.3]
[1646742560580,0.38277639,2580.5,2580.2,0.30480175]
[1646742560780,0.38277639,2580.4,2580.3,1.17948151]
[1646742560983,0.38277639,2580.4,2580.3,2.27335176]
[1646742561235,0.73562152,2580.6,2580.3,2.27335176]
[1646742561236,0.38277639,2580.5,2580.3,2.27335176]
[1646742561428,0.38277639,2580.4,2580.3,1.0643408]
[1646742561825,0.38277639,2580.4,2580.3,2.27511804]
[1646742562428,0.38277639,2580.4,2580.3,2.12511804]
[1646742564232,0.46261377,2580.4,2580.3,2.12511804]
[1646742573887,0.70876532,2580.9,2580.4,5.5]
[1646742574089,0.02520421,2580.5,2580.4,5.5]
[1646742574291,0.70876532,2580.9,2580.5,0.23187409]
[1646742574488,0.70876532,2581.0,2580.5,0.23187527]
[1646742575088,0.70876532,2581.0,2580.9,1.00130511]
[1646742575290,0.70796387,2581.0,2580.9,1.51651426]
[1646742575688,0.70796387,2581.0,2580.9,1.74835416]
[1646742575890,0.9524657,2581.1,2580.9,1.74835416]
[1646742576329,0.9524657,2581.1,2580.9,1.53314501]
[1646742576727,0.9524657,2581.1,2580.9,0.3]
[1646742577032,0.95246596,2581.1,2580.9,0.3]
[1646742577229,0.94766559,2581.0,2580.3,0.25124321]
[1646742577428,0.70795678,2580.8,2580.3,0.24959094]
[1646742577828,0.00480037,2581.1,2580.7,1.14114059]
[1646742577829,0.70795678,2580.9,2580.7,1.14114059]
[1646742578030,0.70795678,2580.9,2580.3,0.44053752]
[1646742578234,0.70795678,2580.8,2580.3,0.43888525]
[1646742579034,1.67729678,2580.8,2580.3,0.43888525]
[1646742579339,1.67729678,2580.8,2580.5,1.01839681]
[1646742579538,0.70795678,2580.7,2580.5,1.01839681]
[1646742579735,0.70795678,2580.7,2580.5,1.31839681]
[1646742580180,1.67729678,2580.8,2580.6,0.23270485]
[1646742580783,1.67729678,2580.8,2580.5,1.31839681]
[1646742581482,1.67729678,2580.8,2580.5,0.57126236]
[1646742583284,1.67729678,2580.8,2580.5,0.3]
[1646742583745,5.5,2580.7,2579.8,2.23019054]
[1646742583932,0.96948,2580.3,2579.8,1.52420169]
[1646742584133,0.70795678,2580.4,2579.6,0.33349564]
[1646742584134,0.70795678,2580.1,2579.6,0.33349564]
[1646742584332,0.70795678,2580.1,2579.7,0.01825313]
[1646742584333,0.98782975,2579.8,2579.7,0.01825313]
[1646742585032,1.69578653,2579.8,2579.7,0.01825313]
[1646742585232,1.69578653,2579.8,2579.6,0.1015378]
[1646742585432,3.05145653,2579.8,2579.6,0.1015378]
[1646742586233,0.70667563,2579.7,2579.6,0.1015378]
[1646742586636,4.20667563,2579.7,2579.6,0.1015378]
[1646742586836,3.5,2579.7,2579.6,0.1015378]
[1646742587236,0.70532001,2579.7,2579.6,0.1015378]
[1646742587483,2.06099001,2579.8,2579.6,0.1015378]
[1646742588082,5.56099001,2579.8,2579.6,0.1015378]
[1646742588280,1.0263917,2579.7,2579.6,0.1015378]
[1646742588482,3.06099001,2579.8,2579.6,0.1015378]
[1646742588682,2.06099001,2579.8,2579.6,0.1015378]
[1646742588886,3.06099001,2579.8,2579.6,0.1015378]
[1646742589087,0.70532001,2579.7,2579.6,0.1015378]
[1646742589487,1.67520001,2579.9,2579.6,0.1015378]
[1646742589786,0.01896484,2579.7,2579.6,0.1015378]
[1646742590488,0.01896484,2579.7,2579.6,1.08100878]
[1646742590990,0.01896484,2579.7,2579.6,0.1050192]
[1646742591235,0.01896484,2579.7,2579.6,0.1015378]
[1646742593332,3.51896484,2579.7,2579.6,0.1015378]
[1646742593931,3.90233082,2579.7,2579.6,0.1015378]
[1646742594534,4.90233082,2579.7,2579.6,0.1015378]
[1646742594733,5.30590516,2579.7,2579.6,3.78e-05]
[1646742594984,18.65179355,2579.7,2579.6,0.0222596]
[1646742595186,18.65179355,2579.7,2579.5,3.49532697]
[1646742595187,17.6258,2579.6,2579.5,3.49532697]
[1646742595379,0.3858,2579.4,2578.5,0.058039]
[1646742595581,0.3858,2579.4,2579.3,4.556e-05]
[1646742595582,5.82619,2579.4,2579.3,4.556e-05]
[1646742595780,24.4289617,2579.4,2579.3,4.556e-05]
[1646742595985,12.1258,2579.2,2578.7,0.03997312]
[1646742596181,0.3858,2579.0,2578.7,0.43860524]
[1646742596483,0.3858,2579.0,2578.7,0.04032384]
[1646742596484,5.8858,2578.8,2578.7,0.04032384]
[1646742596683,6.73509904,2578.8,2578.7,0.04032384]
[1646742596885,3.0,2578.7,2578.5,0.058039]
[1646742597085,0.38329904,2578.6,2578.5,0.07600348]
[1646742597489,5.02486737,2578.6,2578.5,0.07600348]
[1646742597689,1.52486737,2578.6,2578.5,0.07600348]
[1646742597887,5.31961904,2578.6,2578.5,0.07600348]
[1646742598086,5.0,2578.5,2578.4,0.0197447]
[1646742598287,5.38329904,2578.5,2578.4,0.0197447]
[1646742598488,5.38329904,2578.5,2578.2,0.1430561]
[1646742598489,0.3858,2578.3,2577.9,0.05434002]
[1646742598742,0.9706,2578.1,2577.9,0.02308602]
[1646742599135,3.0,2578.0,2577.8,0.00853316]
[1646742599335,0.9706,2578.1,2577.8,0.01706632]
[1646742599736,1.43638,2578.3,2577.8,0.01706632]
[1646742599936,1.94113,2578.1,2577.8,0.01706632]
[1646742600343,1.94113,2578.1,2577.8,1.40013194]
[1646742600938,1.94113,2578.1,2577.8,1.39520986]
[1646742601338,2.9116,2578.1,2577.8,0.32201018]
[1646742601539,2.9116,2578.1,2577.8,0.02201018]
[1646742602236,2.9116,2578.1,2577.8,0.01706632]
[1646742602477,2.9116,2578.1,2577.8,0.02201018]
[1646742602886,2.9116,2578.1,2577.4,0.09078249]
[1646742602887,0.98164418,2577.7,2577.4,0.09078249]
[1646742603079,3.5,2577.6,2577.4,0.09078249]
[1646742603280,5.0,2577.5,2577.4,0.00252288]
[1646742603681,8.966,2577.5,2577.4,0.00252288]
[1646742603882,0.8518,2577.5,2577.2,0.02044976]
[1646742604084,0.97077,2577.3,2577.2,0.02044976]
[1646742604885,0.97077,2577.3,2577.0,0.0041088]
[1646742604886,2.5,2577.2,2577.0,0.0041088]
[1646742605088,2.32738,2577.3,2577.0,0.01420032]
[1646742605286,2.32773,2577.2,2577.0,0.01420032]
[1646742605487,4.5,2577.1,2577.0,0.02840064]
[1646742605684,1.43677,2577.3,2577.0,0.02840064]
[1646742605885,0.3,2577.3,2577.0,0.02840064]
[1646742606085,1.2026,2577.4,2577.0,0.02840064]
[1646742606338,1.94178,2577.2,2577.0,0.02840064]
[1646742606938,1.94178,2577.2,2576.8,0.0073824]
[1646742607137,0.97084,2577.1,2577.0,0.0164352]
[1646742607538,0.97084,2577.1,2576.8,0.0073824]
[1646742607539,6.47094,2577.0,2576.8,0.0147648]
[1646742607739,0.3858,2576.9,2576.8,0.0147648]
[1646742608538,12.5918,2576.9,2576.8,0.0147648]
[1646742608740,16.0918,2576.9,2576.8,0.0147648]
[1646742608939,1.94216,2576.7,2576.3,0.0101424]
[1646742609339,2.24216,2576.7,2576.3,0.0101424]
[1646742609538,2.24216,2576.7,2576.3,1.15074969]
[1646742609977,2.24216,2576.7,2576.3,4.65074969]
[1646742609978,1.94216,2576.7,2576.3,4.65074969]
[1646742610180,1.94216,2576.7,2576.3,4.95074969]
[1646742610385,2.3899593,2576.8,2576.3,4.95074969]
[1646742610582,2.3899593,2576.8,2576.3,1.45074969]
[1646742610984,2.3899593,2576.8,2576.4,1.9410991]
[1646742611384,1.94136,2576.7,2576.4,1.9410991]
[1646742611586,0.97055,2576.8,2576.5,0.20155478]
[1646742611784,0.97055,2576.8,2576.5,0.50155478]
[1646742612187,0.00167959,2576.7,2576.6,1.9411113]
[1646742612385,0.00167959,2576.7,2576.6,5.4411113]
[1646742612587,0.0188877,2577.3,2576.8,5.0]
[1646742612887,0.0188877,2577.3,2576.9,3.5]
[1646742613294,0.0188877,2577.3,2576.9,5.66839438]
[1646742613486,0.0188877,2577.3,2577.0,0.16702709]
[1646742613740,0.01101418,2577.7,2577.0,0.16702709]
[1646742613741,0.01101418,2577.7,2577.2,0.22120429]
[1646742613935,0.01101418,2577.7,2577.2,4.10700429]
[1646742614135,0.01101418,2577.7,2577.2,4.40700429]
[1646742614334,0.01101418,2577.7,2577.2,4.56745222]
[1646742614536,0.01101418,2577.7,2577.3,5.4063224]
[1646742614736,0.01101418,2577.7,2577.5,0.20487684]
[1646742614936,0.01101418,2577.7,2577.6,1.85957571]
[1646742615139,8.4051,2579.1,2577.7,6.09355269]
[1646742615338,4.0462,2579.2,2578.0,0.24541679]
[1646742615539,1.1798,2579.2,2578.4,0.96989]
[1646742615740,2.4257,2579.6,2578.4,0.96989]
[1646742615741,10.4981,2579.7,2578.5,4.33013049]
[1646742615941,10.4981,2579.7,2578.6,0.3858]
[1646742615942,2.8664,2579.7,2578.6,0.3858]
[1646742616139,2.8664,2579.7,2579.3,1.22092412]
[1646742616339,7.59,2580.0,2579.3,1.52092412]
[1646742616537,7.29,2580.0,2579.3,1.52092412]
[1646742616736,0.96973,2579.9,2579.5,0.9695852]
[1646742616938,1.93946,2580.1,2579.5,0.9695852]
[1646742617137,0.00508636,2579.6,2579.5,0.9695852]
[1646742617338,0.00508636,2579.6,2579.5,1.2695852]
[1646742618089,7.29,2580.3,2579.7,0.96948]
[1646742618286,7.29,2580.3,2579.8,0.26059839]
[1646742618687,7.29,2580.3,2579.7,0.3]
[1646742618893,0.94440493,2579.9,2579.7,0.3]
[1646742619090,0.94440493,2579.9,2579.5,0.3]
[1646742619289,0.94440493,2579.9,2579.0,0.23135464]
[1646742619493,3.11000077,2580.2,2579.2,0.96966]
[1646742619690,3.11000077,2580.2,2579.3,0.2779275]
[1646742619893,1.93895,2580.2,2579.3,0.2779275]
[1646742620092,1.93895,2580.2,2579.6,0.26361439]
[1646742620292,1.93895,2580.2,2579.6,0.48017117]
[1646742620494,0.96982,2580.0,2579.6,1.59235444]
[1646742620692,0.96982,2580.0,2579.5,0.3]
[1646742620893,1.94109802,2579.9,2579.5,0.3]
[1646742621096,1.94109802,2579.9,2579.2,0.3]
[1646742621326,1.94109802,2579.9,2579.1,0.00161766]
[1646742621532,1.94109802,2579.9,2579.1,1.10950254]
[1646742621533,0.93562715,2579.8,2579.1,1.10950254]
[1646742621727,0.96974,2579.7,2579.1,1.10950254]
[1646742622128,0.97482504,2579.7,2579.1,1.10950254]
[1646742622528,0.97482504,2579.7,2579.1,1.05950254]
[1646742622730,0.96974,2579.7,2579.2,0.3]
[1646742623229,0.00508523,2579.5,2579.0,0.25619107]
[1646742623429,0.00508523,2579.5,2579.0,0.40963141]
[1646742623430,0.97486523,2579.5,2579.0,0.40963141]
[1646742623632,0.97486523,2579.5,2579.0,0.25619107]
[1646742624033,0.96978,2579.5,2579.0,0.25619107]
[1646742624235,0.96978,2579.5,2579.0,0.55619107]
[1646742624434,0.00508543,2579.4,2579.0,0.55619107]
[1646742624838,0.00508543,2579.4,2578.7,0.00161766]
[1646742625079,0.96996,2579.3,2578.6,0.24558573]
[1646742625578,0.9750455,2579.3,2578.6,0.24558573]
[1646742625778,0.9750455,2579.3,2579.0,1.13085126]
[1646742626184,0.9750455,2579.3,2579.0,0.3]
[1646742626381,0.09348787,2579.2,2579.0,0.3]
[1646742626680,0.09348787,2579.2,2578.7,1.2698977]
[1646742626881,0.09348787,2579.2,2578.7,0.3]
[1646742627281,0.09348787,2579.2,2578.7,1.4779223]
[1646742628084,0.00491435,2579.1,2578.7,1.4779223]
[1646742628284,0.00491435,2579.1,2578.8,1.93958]
[1646742628488,1.94475435,2579.1,2578.8,1.93958]
[1646742628930,1.93984,2579.1,2578.8,1.93958]
[1646742629131,0.00491435,2579.1,2578.9,0.21941937]
[1646742629330,0.00491435,2579.1,2578.9,0.51941937]
[1646742629531,0.02003742,2579.1,2578.9,0.51941937]
[1646742629831,0.00491435,2579.1,2578.9,0.51941937]
[1646742630032,0.01590534,2579.2,2578.9,0.51941937]
[1646742630432,0.00506865,2579.1,2578.9,0.51941937]
[1646742630634,0.00506865,2579.1,2578.9,1.48896067]
[1646742630835,0.00506865,2579.1,2578.9,3.42805067]
[1646742631039,1.2369,2580.2,2579.0,9.3518]
[1646742631040,0.96941,2580.2,2579.0,9.3518]
[1646742631246,7.6774,2580.5,2579.0,9.3518]
[1646742631247,7.29,2580.5,2579.3,0.3858]
[1646742631436,0.38900187,2580.4,2579.4,0.20057562]
[1646742631634,0.38900187,2580.3,2579.6,0.9695209]
[1646742631838,6.302,2580.7,2579.7,0.22221922]
[1646742632034,0.96936,2580.3,2580.1,1.34090089]
[1646742632234,0.96936,2580.3,2580.1,1.64090089]
[1646742632487,0.96936,2580.3,2580.1,0.54383014]
[1646742632689,0.9710369,2580.3,2580.1,0.54383014]
[1646742633791,0.9710369,2580.3,2580.2,0.20410683]
[1646742633990,0.39386013,2580.3,2580.2,0.20410683]
[1646742634287,0.00508754,2580.3,2580.2,0.2361232]
[1646742634488,0.00508754,2580.3,2579.8,1.46121006]
[1646742634688,0.00508754,2580.3,2580.0,0.26024718]
[1646742634888,1.93904,2580.3,2580.0,0.26024718]
[1646742635290,0.00508774,2580.2,2580.0,0.26024718]
[1646742635489,0.97458774,2580.2,2580.0,0.26024718]
[1646742636238,0.9695,2580.2,2580.0,0.26024718]
[1646742636435,0.9695,2580.2,2579.8,2.43069006]
[1646742637033,0.9695,2580.2,2580.0,0.23098842]
[1646742637435,0.9695,2580.2,2579.8,2.13069006]
[1646742637635,0.00508536,2580.1,2579.8,1.16121006]
[1646742638036,0.00508536,2580.1,2579.8,1.3580492]
[1646742638736,0.09348787,2580.9,2579.9,0.3858]
[1646742638938,0.38844484,2580.8,2580.1,1.35496]
[1646742639135,0.09348787,2580.9,2580.2,0.26033324]
[1646742639336,0.96918,2580.8,2580.2,0.26033324]
[1646742640185,0.00508214,2580.6,2580.2,0.26033324]
[1646742640382,0.97435214,2580.6,2580.3,0.96921]
[1646742640582,0.97435214,2580.6,2580.4,0.3]
[1646742640985,0.96927,2580.6,2580.4,0.3]
[1646742641184,0.96927,2580.6,2580.2,0.26033324]
[1646742641185,3.5,2580.5,2580.2,0.26033324]
[1646742641385,3.5,2580.5,2579.7,0.96951]
[1646742641588,0.96955,2580.3,2579.7,0.96951]
[1646742641785,0.96955,2580.3,2579.8,0.25217458]
[1646742642584,0.00461356,2580.2,2579.8,0.25217458]
[1646742642787,1.94360356,2580.2,2579.8,0.12564752]
[1646742643756,0.00461362,2580.1,2580.0,0.56626557]
[1646742644159,0.00461362,2580.1,2580.0,0.86626557]
[1646742644957,0.96949,2580.3,2580.2,0.56626557]
[1646742645359,0.96949,2580.3,2580.2,0.86626557]
[1646742647682,0.00453031,2580.4,2580.2,0.86626557]
[1646742647683,0.00453031,2580.4,2580.2,4.36626557]
[1646742647881,0.00453031,2580.4,2580.3,0.56626557]
[1646742648083,0.00453031,2580.4,2580.3,4.36626557]
[1646742648296,0.01538039,2580.5,2580.3,4.58814075]
[1646742648485,0.01538039,2580.5,2580.4,4.06626557]
[1646742648685,0.01538039,2580.5,2580.4,0.56626557]
[1646742649085,0.96895,2581.0,2580.3,1.49093518]
[1646742649086,0.96895,2581.0,2580.9,1.78581865]
[1646742649290,0.96895,2581.0,2580.9,0.86626557]
[1646742650288,0.96895,2581.0,2580.9,1.10481788]
[1646742650888,4.2256,2581.7,2580.9,4.60481788]
[1646742650889,0.00453783,2581.1,2580.9,4.60481788]
[1646742651089,0.00453783,2581.1,2581.0,4.06626557]
[1646742651345,0.00453783,2581.1,2581.0,6.17611302]
[1646742651546,0.00453783,2581.1,2581.0,4.23879302]
[1646742651846,0.3878,2581.7,2581.0,4.23879302]
[1646742652044,0.0045377,2581.2,2581.0,4.23879302]
[1646742652245,0.0045377,2581.2,2581.0,0.73879302]
[1646742653150,0.96894,2581.3,2581.0,0.73879302]
[1646742653151,0.96894,2581.3,2581.0,0.56626557]
[1646742653350,0.00453539,2581.2,2581.0,0.56626557]
[1646742654353,0.01413877,2581.1,2581.0,0.56626557]
[1646742656799,1.12448012,2581.1,2581.0,0.56626557]
[1646742657197,0.01413877,2581.1,2581.0,0.56626557]
[1646742659859,0.0417744,2581.1,2581.0,0.86626557]
[1646742662890,0.0417744,2581.1,2581.0,0.43421863]
[1646742663894,0.0417744,2581.1,2580.9,0.58]
[1646742663895,3.5417744,2581.1,2580.9,0.58]
[1646742664095,1.34880003,2581.0,2580.9,0.58]
[1646742664293,5.70060003,2581.0,2580.9,0.58]
[1646742664495,5.70060003,2581.0,2579.7,0.16677295]
[1646742664496,5.8858,2580.9,2579.7,0.16677295]
[1646742664694,6.20420003,2580.8,2579.7,0.00161766]
[1646742664897,6.20420003,2580.8,2579.6,0.25767488]
[1646742664898,0.37952003,2580.7,2579.6,0.25767488]
[1646742665096,0.3858,2580.6,2579.8,1.93859]
[1646742665296,1.1185491,2580.2,2579.8,1.93859]
[1646742665896,1.1185491,2580.2,2579.6,0.25767488]
[1646742666341,5.9737391,2580.2,2579.6,0.25767488]
[1646742666745,5.9737391,2580.2,2579.4,0.00161766]
[1646742666746,0.38357282,2580.1,2579.4,0.00161766]
[1646742667042,0.99929617,2579.3,2578.7,0.18980479]
[1646742667243,0.99929617,2579.3,2578.8,0.00161766]
[1646742669048,0.99929617,2579.3,2578.8,0.97137766]
[1646742669648,0.99929617,2579.3,2578.8,1.27137766]
[1646742669848,0.99929617,2579.3,2578.9,1.18108806]
[1646742670098,1.38509617,2579.3,2578.9,1.18108806]
[1646742670295,1.38509617,2579.3,2578.5,0.96989]
[1646742670497,0.96987,2579.1,2578.5,0.96989]
[1646742670701,3.5,2579.0,2578.2,2.19753603]
[1646742671003,1.65567,2579.1,2578.1,0.00161766]
[1646742671004,0.3858,2578.9,2578.1,0.00161766]
[1646742671199,1.14737855,2578.5,2578.1,1.18131108]
[1646742671605,1.14737855,2578.5,2577.9,0.9701]
[1646742671606,0.97013,2578.5,2578.2,1.18131108]
[1646742671801,0.97013,2578.5,2578.2,0.3]
[1646742672200,0.97013,2578.5,2578.3,1.18125961]
[1646742672399,0.97013,2578.5,2578.3,0.3]
[1646742672606,0.97013,2578.5,2577.9,0.23213737]
[1646742672801,0.97013,2578.5,2578.1,0.22614621]
[1646742673002,0.97013,2578.5,2578.2,1.16643744]
[1646742673300,0.97013,2578.5,2578.3,0.368]
[1646742673500,0.97013,2578.5,2578.2,1.16643744]
[1646742673501,0.97013,2578.5,2578.4,0.64669668]
[1646742673740,0.97013,2578.5,2578.4,0.94669668]
[1646742674344,0.97013,2578.5,2578.4,2.11386481]
[1646742674550,0.97013,2578.5,2578.4,0.94669668]
[1646742674745,0.97013,2578.5,2578.4,0.668]
[1646742674947,0.97013,2578.5,2578.4,0.93567441]
[1646742676448,3.8,2578.5,2578.4,0.368]
[1646742676848,3.8858,2578.5,2578.4,0.368]
[1646742677047,3.8858,2578.5,2577.9,0.20826228]
[1646742677048,4.94056,2578.4,2577.9,0.20826228]
[1646742677247,1.19278733,2578.1,2577.9,0.20826228]
[1646742677508,1.19278733,2578.1,2577.3,0.04632976]
[1646742677701,1.19278733,2578.1,2577.4,1.15368169]
[1646742677899,1.19278733,2578.1,2577.5,1.43055161]
[1646742678099,1.19278733,2578.1,2577.6,1.15368169]
[1646742678701,0.88743011,2577.7,2577.6,1.15368169]
[1646742678909,0.88743011,2577.7,2577.1,0.25792418]
[1646742679102,0.88743011,2577.7,2577.2,1.15377653]
[1646742679308,5.5,2577.6,2576.8,0.00161766]
[1646742679501,5.5,2577.6,2576.7,0.2972]
[1646742679502,5.8858,2577.6,2576.7,0.2972]
[1646742679701,5.35806011,2577.7,2576.7,0.55619732]
[1646742679702,3.8858,2577.5,2576.7,0.55619732]
[1646742679903,1.04748292,2576.8,2576.7,0.55619732]
[1646742680304,1.04748292,2576.8,2576.4,1.9412]
[1646742680702,1.04748292,2576.8,2576.5,0.21357119]
[1646742680901,1.94141,2576.7,2576.5,0.21357119]
[1646742681344,1.94141,2576.7,2576.6,0.634]
[1646742682647,0.97069,2577.0,2576.6,0.634]
[1646742682855,19.4101,2578.8,2576.6,0.634]
[1646742682856,1.1505,2578.4,2577.5,2.03702315]
[1646742683050,1.1505,2578.4,2577.7,0.634]
[1646742683253,0.14045609,2578.5,2577.7,0.634]
[1646742683449,0.14045609,2578.5,2577.8,0.634]
[1646742683648,0.97015,2578.2,2578.0,0.634]
[1646742683848,1.09335191,2578.1,2578.0,0.634]
[1646742684251,1.27015,2578.2,2578.0,0.634]
[1646742684448,0.97015,2578.2,2578.0,0.634]
[1646742685803,0.97015,2578.2,2578.0,0.934]
[1646742686806,5.67318305,2579.2,2578.0,1.51237391]
[1646742687002,4.24278787,2579.2,2578.3,0.634]
[1646742687203,3.04713848,2579.2,2578.3,0.934]
[1646742687502,0.96975,2578.7,2578.3,0.934]
[1646742687705,0.96975,2578.7,2578.6,0.634]
[1646742688112,1.93933,2578.9,2578.6,0.634]
[1646742688505,1.93933,2578.9,2578.7,0.634]
[1646742688740,1.93933,2578.9,2578.7,1.72296137]
[1646742689345,1.93933,2578.9,2578.7,2.69259137]
[1646742690245,1.93933,2578.9,2578.7,3.66219937]
[1646742690446,0.3877,2579.8,2579.6,0.634]
[1646742690650,10.0,2580.0,2579.6,0.634]
[1646742690849,1.93873,2579.8,2579.7,0.634]
[1646742692520,1.93873,2579.8,2579.7,0.44013279]
[1646742692926,1.93873,2579.8,2579.3,2.90804]
[1646742693123,1.93873,2579.8,2578.9,3.87977766]
[1646742693327,1.93873,2579.8,2578.9,3.87816]
[1646742693523,1.93873,2579.8,2579.0,0.96962]
[1646742694126,1.93873,2579.8,2579.1,0.3]
[1646742694324,0.00491402,2579.5,2579.1,0.3]
[1646742694725,0.00491402,2579.5,2579.1,1.26951]
[1646742694925,0.00491402,2579.5,2579.2,1.93874]
[1646742695328,1.93911,2579.6,2579.3,0.96933]
[1646742695526,0.08708928,2579.9,2579.5,0.95817809]
[1646742695729,0.08708928,2579.9,2579.5,1.25817809]
[1646742695931,0.08708928,2579.9,2579.5,5.22744809]
[1646742696271,3.87704,2581.0,2579.7,8.8858]
[1646742696460,2.7579,2581.2,2579.9,0.3858]
[1646742696661,1.1366,2581.5,2580.1,0.3858]
[1646742696862,3.5,2581.6,2580.0,3.74071575]
[1646742696863,3.8858,2581.6,2580.4,0.9688041]
[1646742697163,1.93759,2581.3,2580.7,2.30822588]
[1646742697364,1.93759,2581.3,2580.7,1.24152101]
[1646742697664,1.93759,2581.3,2580.7,0.27270101]
[1646742698064,1.93759,2581.3,2580.7,2.21035101]
[1646742698065,0.00453755,2581.1,2580.7,2.21035101]
[1646742698267,0.97347755,2581.1,2580.7,2.21035101]
[1646742698570,0.97347755,2581.1,2580.6,0.3]
[1646742698571,0.90927347,2580.8,2580.6,0.3]
[1646742698767,5.82412,2581.0,2580.5,1.23763944]
[1646742698768,0.3,2580.9,2580.5,1.23763944]
[1646742699165,0.3,2580.9,2580.6,1.93786]
[1646742699366,0.96916,2580.9,2580.6,1.93786]
[1646742699767,0.96916,2580.9,2580.7,0.25342905]
[1646742699996,0.96916,2580.9,2580.7,1.22188623]
[1646742700399,0.97377234,2580.9,2580.7,1.52188623]
[1646742700802,0.97377234,2580.9,2580.7,0.55342905]
[1646742701002,0.97377234,2580.9,2580.7,0.25342905]
[1646742701305,0.97377234,2580.9,2580.5,1.93786]
[1646742701306,0.3,2580.9,2580.5,2.23786]
[1646742701502,1.9384,2580.8,2580.5,0.3]
[1646742701701,2.2384,2580.8,2580.4,0.3]
[1646742701900,1.14044028,2580.5,2580.0,0.02673314]
[1646742702102,2.00977028,2580.5,2580.0,0.02673314]
[1646742702303,2.00977028,2580.5,2579.8,0.26798379]
[1646742702304,3.8858,2580.4,2579.8,0.26798379]
[1646742702502,3.8858,2580.4,2579.6,0.21715613]
[1646742702702,0.3858,2580.2,2579.3,0.00161766]
[1646742703002,0.3858,2580.2,2579.2,0.2558016]
[1646742703404,0.96948,2579.7,2579.2,0.2558016]
[1646742703748,1.03118339,2579.8,2579.7,0.64499846]
[1646742703952,0.3858,2580.2,2579.7,0.94499846]
[1646742704151,0.00459609,2579.8,2579.7,0.94499846]
[1646742704350,0.00459609,2579.8,2579.7,0.64499846]
[1646742704951,0.96947,2580.0,2579.7,0.64499846]
[1646742705151,0.96947,2580.0,2579.7,1.61429846]
[1646742705551,0.00459603,2579.9,2579.7,1.91429846]
[1646742706153,0.96947,2580.0,2579.7,1.91429846]
[1646742706555,0.00459866,2579.9,2579.7,1.91429846]
[1646742707352,0.96947,2580.0,2579.7,1.91429846]
[1646742707800,0.00449358,2579.9,2579.7,1.91429846]
[1646742708405,0.00449358,2579.9,2579.7,2.53688513]
[1646742708603,0.96947,2580.0,2579.8,1.1]
[1646742709208,0.96947,2580.0,2579.8,1.11462754]
[1646742710009,0.97396906,2580.0,2579.8,1.11462754]
[1646742710410,1.12502002,2579.9,2579.8,1.11462754]
[1646742712249,0.96947,2580.0,2579.8,1.41462754]
[1646742712450,0.97407811,2580.0,2579.8,1.41462754]
[1646742713453,0.96947,2580.0,2579.8,1.41462754]
[1646742713656,0.97412807,2580.0,2579.8,1.41462754]
[1646742714255,0.03469173,2579.9,2579.8,1.41462754]
[1646742716600,0.02348284,2580.0,2579.9,1.1]
[1646742717006,0.01893418,2580.0,2579.9,1.1]
[1646742717402,0.02342919,2580.0,2579.9,1.1]
[1646742718201,0.01893418,2580.0,2579.9,1.1]
[1646742719456,0.03419135,2580.0,2579.9,1.1]
[1646742720759,0.41999135,2580.0,2579.9,1.1]
[1646742722514,0.03419135,2580.0,2579.9,1.1]
[1646742722700,0.03419135,2580.0,2579.8,1.11462754]
[1646742722899,0.03419135,2580.0,2579.8,1.41462754]
[1646742723503,0.03869655,2580.0,2579.8,1.41462754]
[1646742723703,0.03869655,2580.0,2579.8,0.59078183]
[1646742724607,0.03419135,2580.0,2579.8,0.59078183]
[1646742724811,0.03869636,2580.0,2579.8,0.59078183]
[1646742725004,0.99997725,2579.9,2579.8,0.59078183]
[1646742725605,1.38577725,2579.9,2579.8,0.59078183]
[1646742726448,0.99997725,2579.9,2579.8,0.59078183]
[1646742727460,1.12032649,2580.0,2579.8,0.59078183]
[1646742727657,0.15084649,2580.0,2579.8,0.89078183]
[1646742728057,0.14634142,2580.0,2579.8,0.89078183]
[1646742728656,0.14634142,2580.0,2579.9,1.56231175]
[1646742728657,0.15085513,2580.0,2579.9,1.56231175]
[1646742729356,0.14634142,2580.0,2579.9,1.56231175]
[1646742729557,0.09729222,2580.0,2579.9,1.56231175]
[1646742731001,0.00452241,2580.1,2579.9,2.69454592]
[1646742731200,1.9387,2580.5,2580.1,0.59078183]
[1646742731405,1.9387,2580.5,2580.2,0.59078183]
[1646742731406,0.4400311,2580.4,2580.2,0.59078183]
[1646742733104,0.4400311,2580.4,2580.3,1.72509914]
[1646742733505,0.4400311,2580.4,2580.3,0.89078183]
[1646742733749,0.4400311,2580.4,2580.3,2.02390956]
[1646742734154,0.4400311,2580.4,2580.3,0.89078183]
[1646742734354,0.2900311,2580.4,2580.3,0.89078183]
[1646742739105,0.96934,2580.6,2580.3,0.89078183]
[1646742739306,0.08449494,2580.4,2580.3,0.89078183]
[1646742743557,0.04688955,2580.5,2580.4,0.03721667]
[1646742743758,0.0421389,2580.5,2580.4,3.6279985]
[1646742743958,0.04689574,2580.5,2580.4,3.6279985]
[1646742744158,0.04689574,2580.5,2580.4,0.6279985]
[1646742744357,0.04689574,2580.5,2580.4,0.5279985]
[1646742745008,0.0421389,2580.5,2580.4,0.5279985]
[1646742746502,1.66770158,2581.1,2580.9,0.5279985]
[1646742746702,0.96596562,2581.1,2580.9,0.5279985]
[1646742747003,0.96596562,2581.1,2581.0,0.5279985]
[1646742748209,9.92983596,2581.3,2581.0,0.8279985]
[1646742748406,7.29,2581.3,2581.0,0.8279985]
[1646742749054,7.29,2581.3,2581.2,0.5279985]
[1646742749456,7.29,2581.3,2581.2,0.8279985]
[1646742750156,10.79,2581.3,2581.2,0.5279985]
[1646742750356,7.29,2581.3,2581.2,0.5279985]
[1646742750559,7.99173596,2581.3,2581.2,0.5279985]
[1646742750961,7.29,2581.3,2581.2,0.5279985]